fUST/lending_fUST_20250302
["ID","MTS","AMOUNT","RATE_DAILY","PERIOD"]
[355042467,1740880243122,-500.0,0.00024657,2]
[355042468,1740880243132,-500.0,0.00024657,2]
[355042469,1740880243146,-1384.13,0.00024657,2]
[355042470,1740880243157,-500.0,0.00024657,2]
[355042472,1740880243168,-500.0,0.00024657,2]
[355042474,1740880243179,-500.0,0.00024657,2]
[355042476,1740880243190,-500.0,0.00024657,2]
[355042478,1740880243200,-500.0,0.00024657,2]
[355042480,1740880243211,-525.96446945,0.00024657,2]
[355042482,1740880243223,-500.0,0.00024657,2]
[355042485,1740880243232,-500.0,0.00024657,2]
[355042488,1740880243243,-501.05757469,0.00024657,2]
[355042489,1740880243253,-500.0,0.00024657,2]
[355042490,1740880243263,-500.0,0.00024657,2]
[355042491,1740880243273,-504.92016221,0.00024657,2]
[355042492,1740880243283,-674.15,0.00024657,2]
[355042493,1740880243293,-500.0,0.00024657,2]
[355042494,1740880243303,-157.51108199,0.00024657,2]
[355042495,1740880243313,-500.0,0.00024657,2]
[355042496,1740880243324,-500.25145076,0.00024657,2]
[355042497,1740880243336,-500.0,0.00024657,2]
[355042498,1740880243346,-500.3617695,0.00024657,2]
[355042499,1740880243357,-500.0,0.00024657,2]
[355042500,1740880243368,-3195.55,0.00024657,2]
[355042501,1740880243378,-500.0,0.00024657,2]
[355042502,1740880243388,-500.0,0.00024657,2]
[355042503,1740880243398,-350.93559004,0.00024657,2]
[355042504,1740880243408,-500.0,0.00024657,2]
[355042505,1740880243418,-500.0,0.00024657,2]
[355042506,1740880243428,-500.0,0.00024657,2]
[355042507,1740880243439,-500.0,0.00024657,2]
[355042508,1740880243449,-1047.61,0.00024657,2]
[355042509,1740880243460,-522.93880167,0.00024657,2]
[355042510,1740880243471,-1000.0,0.00024657,2]
[355042511,1740880243481,-500.0,0.00024657,2]
[355042512,1740880243491,-500.0,0.00024657,2]
[355042513,1740880243504,-614.99,0.00024657,2]
[355042514,1740880243515,-1198.93,0.00024657,2]
[355042515,1740880243526,-500.0,0.00024657,2]
[355042516,1740880243537,-553.7,0.00024657,2]
[355042517,1740880243547,-500.0,0.00024657,2]
[355042518,1740880243558,-500.0,0.00024657,2]
[355042519,1740880243569,-591.09,0.00024657,2]
[355042520,1740880243580,-2175.84,0.00024657,2]
[355042521,1740880243591,-500.0,0.00024657,2]
[355042522,1740880243601,-1475.13,0.00024657,2]
[355042523,1740880243611,-1475.13,0.00024657,2]
[355042524,1740880243622,-500.0,0.00024657,2]
[355042525,1740880243632,-1475.13,0.00024657,2]
[355042526,1740880243643,-1475.13,0.00024657,2]
[355042527,1740880243653,-1475.13,0.00024657,2]
[355042528,1740880243664,-1475.13,0.00024657,2]
[355042529,1740880243674,-1475.13,0.00024657,2]
[355042530,1740880243684,-1475.13,0.00024657,2]
[355042531,1740880243694,-1475.13,0.00024657,2]
[355042532,1740880243705,-1475.13,0.00024657,2]
[355042533,1740880243715,-1475.13,0.00024657,2]
[355042534,1740880243725,-1475.13,0.00024657,2]
[355042535,1740880243735,-1475.13,0.00024657,2]
[355042536,1740880243745,-1475.13,0.00024657,2]
[355042537,1740880243755,-1475.13,0.00024657,2]
[355042538,1740880243766,-500.0,0.00024657,2]
[355042539,1740880243777,-1475.13,0.00024657,2]
[355042540,1740880243787,-2268.39,0.00024657,2]
[355042541,1740880243798,-1475.13,0.00024657,2]
[355042542,1740880243808,-500.0,0.00024657,2]
[355042543,1740880243819,-1475.13,0.00024657,2]
[355042544,1740880243829,-1475.13,0.00024657,2]
[355042545,1740880243841,-3584.66,0.00024657,2]
[355042546,1740880243852,-1475.13,0.00024657,2]
[355042547,1740880243862,-3584.66,0.00024657,2]
[355042548,1740880243872,-1475.13,0.00024657,2]
[355042549,1740880243883,-3584.66,0.00024657,2]
[355042550,1740880243894,-3584.66,0.00024657,2]
[355042551,1740880243904,-1475.13,0.00024657,2]
[355042552,1740880243915,-3584.66,0.00024657,2]
[355042553,1740880243925,-1475.13,0.00024657,2]
[355042554,1740880243936,-3584.66,0.00024657,2]
[355042555,1740880243946,-524.51,0.00024657,2]
[355042556,1740880243957,-1475.36821474,0.00024657,2]
[355042557,1740880243968,-3584.66,0.00024657,2]
[355042558,1740880243978,-501.97206904,0.00024657,2]
[355042559,1740880243990,-3584.66,0.00024657,2]
[355042560,1740880244001,-3584.66,0.00024657,2]
[355042561,1740880244011,-500.0,0.00024657,2]
[355042562,1740880244022,-3584.66,0.00024657,2]
[355042563,1740880244032,-3584.66,0.00024657,2]
[355042564,1740880244043,-343.67365642,0.00024657,2]
[355042565,1740880244053,-3584.66,0.00024657,2]
[355042566,1740880244064,-3584.66,0.00024657,2]
[355042567,1740880244075,-3584.66,0.00024657,2]
[355042568,1740880244085,-3584.66,0.00024657,2]
[355042569,1740880244096,-3584.66,0.00024657,2]
[355042570,1740880244106,-3584.66,0.00024657,2]
[355042571,1740880244117,-3584.66,0.00024657,2]
[355042572,1740880244127,-3584.66,0.00024657,2]
[355042573,1740880244141,-3584.66,0.00024657,2]
[355042574,1740880244153,-3584.66,0.00024657,2]
[355042575,1740880244163,-3584.66,0.00024657,2]
[355042576,1740880244173,-3584.66,0.00024657,2]
[355042577,1740880244183,-3584.68252579,0.00024657,2]
[355042578,1740880244193,-500.0,0.00024657,2]
[355042579,1740880244204,-500.0,0.00024657,2]
[355042580,1740880244214,-500.0,0.00024657,2]
[355042581,1740880244224,-500.0,0.00024657,2]
[355042582,1740880244234,-500.0,0.00024657,2]
[355042583,1740880244245,-500.0,0.00024657,2]
[355042584,1740880244255,-509.49551539,0.00024657,2]
[355042585,1740880244265,-500.0,0.00024657,2]
[355042586,1740880244275,-500.0,0.00024657,2]
[355042587,1740880244286,-500.0,0.00024657,2]
[355042588,1740880244296,-2076.54,0.00024657,2]
[355042589,1740880244307,-500.0,0.00024657,2]
[355042590,1740880244318,-1420.81,0.00024657,2]
[355042591,1740880244329,-510.98376232,0.00024657,2]
[355042592,1740880244342,-500.0,0.00024657,2]
[355042593,1740880244354,-500.0,0.00024657,2]
[355042594,1740880244365,-500.51,0.00024657,2]
[355042595,1740880244377,-521.17,0.00024657,2]
[355042596,1740880244389,-928.01,0.00024657,2]
[355042597,1740880244400,-508.18514725,0.00024657,2]
[355042598,1740880244410,-2706.92,0.00024657,2]
[355042599,1740880244421,-687.64,0.00024657,2]
[355042600,1740880244432,-752.72,0.00024657,2]
[355042601,1740880244443,-504.67756122,0.00024657,2]
[355042602,1740880244453,-500.0,0.00024657,2]
[355042603,1740880244465,-1471.54,0.00024657,2]
[355042604,1740880244475,-500.0,0.00024657,2]
[355042605,1740880244731,-500.0,0.00024657,2]
[355042606,1740880244741,-201.01319346,0.00024657,2]
[355042607,1740880244751,-500.0,0.00024657,2]
[355042608,1740880244760,-500.0,0.00024657,2]
[355042609,1740880244771,-500.0,0.00024657,2]
[355042610,1740880244781,-546.87,0.00024657,2]
[355042611,1740880244791,-500.0,0.00024657,2]
[355042612,1740880244801,-1392.2,0.00024657,2]
[355042613,1740880244811,-500.0,0.00024657,2]
[355042614,1740880244822,-1000.0,0.00024657,2]
[355042615,1740880244832,-500.0,0.00024657,2]
[355042616,1740880244843,-500.0,0.00024657,2]
[355042617,1740880244854,-500.0,0.00024657,2]
[355042618,1740880244864,-500.0,0.00024657,2]
[355042619,1740880244874,-500.0,0.00024657,2]
[355042620,1740880244884,-500.0,0.00024657,2]
[355042621,1740880244894,-500.0,0.00024657,2]
[355042622,1740880244904,-500.0,0.00024657,2]
[355042623,1740880244915,-500.0,0.00024657,2]
[355042624,1740880244925,-357.21705909,0.00024657,2]
[355042625,1740880244934,-1223.59,0.00024657,2]
[355042626,1740880244944,-500.0,0.00024657,2]
[355042627,1740880244954,-500.0,0.00024657,2]
[355042628,1740880244963,-500.0,0.00024657,2]
[355042629,1740880244973,-505.46521836,0.00024657,2]
[355042630,1740880244983,-500.0,0.00024657,2]
[355042631,1740880244993,-500.0,0.00024657,2]
[355042632,1740880245003,-282.10543632,0.00024657,2]
[355042633,1740880245013,-1131.99,0.00024657,2]
[355042634,1740880245023,-507.32447452,0.00024657,2]
[355042635,1740880245034,-546.98,0.00024657,2]
[355042636,1740880245045,-500.0,0.00024657,2]
[355042637,1740880245055,-513.43880016,0.00024657,2]
[355042638,1740880245066,-500.0,0.00024657,2]
[355042639,1740880245076,-250.51046727,0.00024657,2]
[355042640,1740880245086,-723.26,0.00024657,2]
[355042641,1740880245096,-1168.03,0.00024657,2]
[355042642,1740880245106,-502.0846758,0.00024657,2]
[355042643,1740880245117,-500.0,0.00024657,2]
[355042644,1740880245127,-261.99672983,0.00024657,2]
[355042645,1740880245139,-548.67,0.00024657,2]
[355042646,1740880245150,-500.0,0.00024657,2]
[355042647,1740880245159,-500.0,0.00024657,2]
[355042648,1740880245170,-500.0,0.00024657,2]
[355042649,1740880245181,-500.0,0.00024657,2]
[355042650,1740880245191,-500.0,0.00024657,2]
[355042651,1740880245200,-500.0,0.00024657,2]
[355042652,1740880245211,-500.0,0.00024657,2]
[355042653,1740880245220,-500.0,0.00024657,2]
[355042654,1740880245230,-503.35814536,0.00024657,2]
[355042655,1740880245240,-500.0,0.00024657,2]
[355042656,1740880245250,-500.0,0.00024657,2]
[355042657,1740880245260,-500.0,0.00024657,2]
[355042658,1740880245270,-3044.28,0.00024657,2]
[355042659,1740880245279,-501.64548635,0.00024657,2]
[355042660,1740880245289,-500.0,0.00024657,2]
[355042661,1740880245299,-500.0,0.00024657,2]
[355042662,1740880245309,-583.22,0.00024657,2]
[355042663,1740880245319,-500.0,0.00024657,2]
[355042664,1740880245330,-500.0,0.00024657,2]
[355042665,1740880245340,-508.73521276,0.00024657,2]
[355042666,1740880245350,-1031.55,0.00024657,2]
[355042667,1740880245361,-500.0,0.00024657,2]
[355042668,1740880245370,-500.0,0.00024657,2]
[355042669,1740880245380,-501.78053207,0.00024657,2]
[355042670,1740880245391,-500.0,0.00024657,2]
[355042671,1740880245401,-500.0,0.00024657,2]
[355042672,1740880245411,-500.0,0.00024657,2]
[355042673,1740880245421,-500.0,0.00024657,2]
[355042674,1740880245431,-500.0,0.00024657,2]
[355042675,1740880245441,-500.0,0.00024657,2]
[355042676,1740880245452,-500.0,0.00024657,2]
[355042677,1740880245461,-531.7,0.00024657,2]
[355042678,1740880245471,-500.0,0.00024657,2]
[355042679,1740880245481,-1257.16,0.00024657,2]
[355042680,1740880245491,-500.0,0.00024657,2]
[355042681,1740880245500,-500.0,0.00024657,2]
[355042682,1740880245511,-500.0,0.00024657,2]
[355042683,1740880245521,-500.0,0.00024657,2]
[355042684,1740880245531,-500.0,0.00024657,2]
[355042685,1740880245541,-1834.8,0.00024657,2]
[355042686,1740880245551,-500.0,0.00024657,2]
[355042687,1740880245561,-500.0,0.00024657,2]
[355042688,1740880245571,-500.0,0.00024657,2]
[355042689,1740880245581,-500.0,0.00024657,2]
[355042690,1740880245593,-500.0,0.00024657,2]
[355042691,1740880245603,-500.0,0.00024657,2]
[355042692,1740880245613,-500.0,0.00024657,2]
[355042693,1740880245623,-930.89,0.00024657,2]
[355042694,1740880245633,-191.98094613,0.00024657,2]
[355042695,1740880245643,-500.0,0.00024657,2]
[355042696,1740880245653,-500.0,0.00024657,2]
[355042697,1740880245663,-500.0,0.00024657,2]
[355042698,1740880245673,-500.0,0.00024657,2]
[355042699,1740880245685,-919.06,0.00024657,2]
[355042700,1740880245705,-1076.72,0.00024657,2]
[355042701,1740880245715,-500.0,0.00024657,2]
[355042702,1740880245725,-500.0,0.00024657,2]
[355042703,1740880245735,-500.0,0.00024657,2]
[355042704,1740880245745,-500.0,0.00024657,2]
[355042705,1740880245755,-267.45589104,0.00024657,2]
[355042706,1740880245764,-500.0,0.00024657,2]
[355042707,1740880245774,-500.0,0.00024657,2]
[355042708,1740880245784,-500.0,0.00024657,2]
[355042709,1740880245794,-500.0,0.00024657,2]
[355042710,1740880245804,-500.0,0.00024657,2]
[355042711,1740880245814,-500.0,0.00024657,2]
[355042712,1740880245824,-500.0,0.00024657,2]
[355042713,1740880245834,-500.0,0.00024657,2]
[355042714,1740880245844,-500.0,0.00024657,2]
[355042715,1740880245854,-529.90443607,0.00024657,2]
[355042716,1740880245864,-500.0,0.00024657,2]
[355042717,1740880245874,-500.0,0.00024657,2]
[355042718,1740880245884,-1069.63,0.00024657,2]
[355042719,1740880245894,-500.0,0.00024657,2]
[355042720,1740880245904,-602.99,0.00024657,2]
[355042721,1740880245913,-500.0,0.00024657,2]
[355042722,1740880245924,-500.0,0.00024657,2]
[355042723,1740880245934,-500.0,0.00024657,2]
[355042724,1740880245944,-500.0,0.00024657,2]
[355042725,1740880245954,-1066.49,0.00024657,2]
[355042726,1740880245964,-5283.31,0.00024657,2]
[355042727,1740880245974,-516.89,0.00024657,2]
[355042728,1740880245984,-1004.76,0.00024657,2]
[355042730,1740880245994,-500.0,0.00024657,2]
[355042732,1740880246004,-502.74177431,0.00024657,2]
[355042733,1740880246014,-500.0,0.00024657,2]
[355042734,1740880246024,-500.0,0.00024657,2]
[355042735,1740880246033,-2661.42,0.00024657,2]
[355042736,1740880246043,-500.0,0.00024657,2]
[355042737,1740880246053,-500.0,0.00024657,2]
[355042738,1740880246062,-500.0,0.00024657,2]
[355042739,1740880246072,-500.0,0.00024657,2]
[355042740,1740880246082,-500.0,0.00024657,2]
[355042741,1740880246092,-500.0,0.00024657,2]
[355042742,1740880246102,-553.42764635,0.00024657,2]
[355042743,1740880246112,-617.73,0.00024657,2]
[355042744,1740880246122,-954.7,0.00024657,2]
[355042745,1740880246133,-791.56,0.00024657,2]
[355042746,1740880246145,-500.0,0.00024657,2]
[355042747,1740880246155,-500.0,0.00024657,2]
[355042748,1740880246164,-500.0,0.00024657,2]
[355042749,1740880246174,-500.0,0.00024657,2]
[355042750,1740880246183,-500.0,0.00024657,2]
[355042751,1740880246193,-505.70013762,0.00024657,2]
[355042752,1740880246203,-500.0,0.00024657,2]
[355042753,1740880246213,-1320.98,0.00024657,2]
[355042754,1740880246222,-500.0,0.00024657,2]
[355042755,1740880246232,-500.0,0.00024657,2]
[355042756,1740880246242,-500.0,0.00024657,2]
[355042757,1740880246251,-2209.87,0.00024657,2]
[355042758,1740880246261,-500.0,0.00024657,2]
[355042759,1740880246271,-508.60188842,0.00024657,2]
[355042760,1740880246281,-500.0,0.00024657,2]
[355042761,1740880246291,-12127.47,0.00024657,2]
[355042762,1740880246301,-500.0,0.00024657,2]
[355042763,1740880246311,-500.0,0.00024657,2]
[355042764,1740880246320,-500.03,0.00024657,2]
[355042765,1740880246330,-200.0,0.00024657,2]
[355042766,1740880246340,-500.0,0.00024657,2]
[355042767,1740880246349,-500.0,0.00024657,2]
[355042768,1740880246359,-500.0,0.00024657,2]
[355042769,1740880246369,-714.71,0.00024657,2]
[355042770,1740880246379,-500.0,0.00024657,2]
[355042771,1740880246389,-500.0,0.00024657,2]
[355042772,1740880246398,-500.0,0.00024657,2]
[355042773,1740880246408,-500.0,0.00024657,2]
[355042774,1740880246417,-500.0,0.00024657,2]
[355042775,1740880246427,-500.0,0.00024657,2]
[355042776,1740880246436,-500.0,0.00024657,2]
[355042777,1740880246446,-500.0,0.00024657,2]
[355042778,1740880246456,-500.0,0.00024657,2]
[355042779,1740880246465,-500.0,0.00024657,2]
[355042781,1740880246475,-500.0,0.00024657,2]
[355042782,1740880246485,-500.0,0.00024657,2]
[355042783,1740880246494,-500.0,0.00024657,2]
[355042784,1740880246504,-500.0,0.00024657,2]
[355042785,1740880246515,-500.0,0.00024657,2]
[355042786,1740880246524,-500.0,0.00024657,2]
[355042787,1740880246534,-912.13,0.00024657,2]
[355042788,1740880246544,-500.0,0.00024657,2]
[355042790,1740880246554,-500.0,0.00024657,2]
[355042791,1740880246564,-500.0,0.00024657,2]
[355042792,1740880246574,-500.0,0.00024657,2]
[355042793,1740880246585,-504.52378341,0.00024657,2]
[355042794,1740880246596,-500.0,0.00024657,2]
[355042795,1740880246606,-500.0,0.00024657,2]
[355042796,1740880246615,-500.0,0.00024657,2]
[355042797,1740880246626,-500.0,0.00024657,2]
[355042798,1740880246635,-866.0,0.00024657,2]
[355042799,1740880246645,-500.0,0.00024657,2]
[355042800,1740880246655,-500.0,0.00024657,2]
[355042801,1740880246664,-500.0,0.00024657,2]
[355042802,1740880246674,-500.0,0.00024657,2]
[355042803,1740880246684,-500.0,0.00024657,2]
[355042804,1740880246694,-1259.84,0.00024657,2]
[355042805,1740880246703,-500.0,0.00024657,2]
[355042806,1740880246714,-500.0,0.00024657,2]
[355042807,1740880246724,-500.0,0.00024657,2]
[355042808,1740880246733,-500.17855378,0.00024657,2]
[355042809,1740880246743,-502.37449777,0.00024657,2]
[355042810,1740880246753,-482.01742038,0.00024657,2]
[355042811,1740880246764,-500.0,0.00024657,2]
[355042812,1740880246774,-500.0,0.00024657,2]
[355042813,1740880246783,-237257.16,0.00024657,2]
[355042814,1740880246793,-500.0,0.00024657,2]
[355042815,1740880246803,-533.74,0.00024657,2]
[355042816,1740880246812,-2799.02,0.00024657,2]
[355042817,1740880246822,-500.0,0.00024657,2]
[355042818,1740880246832,-3275.34,0.00024657,2]
[355042819,1740880246843,-343.47792291,0.00024657,2]
[355042820,1740880246853,-1622.45,0.00024657,2]
[355042821,1740880246863,-505.27436091,0.00024657,2]
[355042822,1740880246873,-1389.7,0.00024657,2]
[355042823,1740880246882,-500.0,0.00024657,2]
[355042824,1740880246892,-500.0,0.00024657,2]
[355042825,1740880246901,-500.0,0.00024657,2]
[355042826,1740880246911,-500.0,0.00024657,2]
[355042827,1740880246920,-500.0,0.00024657,2]
[355042828,1740880246930,-503.86199769,0.00024657,2]
[355042829,1740880246940,-500.0,0.00024657,2]
[355042830,1740880246950,-500.0,0.00024657,2]
[355042831,1740880246960,-2526.74,0.00024657,2]
[355042832,1740880246970,-703.97,0.00024657,2]
[355042833,1740880246980,-500.0,0.00024657,2]
[355042834,1740880246990,-500.0,0.00024657,2]
[355042835,1740880247000,-500.0,0.00024657,2]
[355042836,1740880247010,-500.0,0.00024657,2]
[355042837,1740880247020,-500.0,0.00024657,2]
[355042838,1740880247030,-1718.1,0.00024657,2]
[355042839,1740880247040,-500.0,0.00024657,2]
[355042840,1740880247050,-500.0,0.00024657,2]
[355042841,1740880247060,-500.0,0.00024657,2]
[355042842,1740880247070,-500.0,0.00024657,2]
[355042843,1740880247156,-500.0,0.00024657,2]
[355042844,1740880247166,-1801.15,0.00024657,2]
[355042845,1740880247176,-500.0,0.00024657,2]
[355042846,1740880247187,-500.0,0.00024657,2]
[355042847,1740880247197,-500.0,0.00024657,2]
[355042848,1740880247206,-4941.89,0.00024657,2]
[355042849,1740880247217,-500.0,0.00024657,2]
[355042850,1740880247226,-438.23800319,0.00024657,2]
[355042851,1740880247235,-500.0,0.00024657,2]
[355042852,1740880247245,-512.222438,0.00024657,2]
[355042853,1740880247259,-500.0,0.00024657,2]
[355042854,1740880247270,-500.0,0.00024657,2]
[355042855,1740880247279,-860.85,0.00024657,2]
[355042856,1740880247288,-500.0,0.00024657,2]
[355042857,1740880247298,-500.0,0.00024657,2]
[355042858,1740880247308,-1102.8,0.00024657,2]
[355042859,1740880247318,-500.0,0.00024657,2]
[355042860,1740880247327,-500.0,0.00024657,2]
[355042861,1740880247337,-2226.47,0.00024657,2]
[355042862,1740880247346,-687.36,0.00024657,2]
[355042863,1740880247356,-500.0,0.00024657,2]
[355042864,1740880247366,-500.0,0.00024657,2]
[355042865,1740880247375,-500.0,0.00024657,2]
[355042866,1740880247385,-508.64132363,0.00024657,2]
[355042867,1740880247395,-2646.1,0.00024657,2]
[355042868,1740880247404,-500.0,0.00024657,2]
[355042869,1740880247414,-500.0,0.00024657,2]
[355042870,1740880247423,-500.0,0.00024657,2]
[355042871,1740880247433,-632.47751573,0.00024657,2]
[355042872,1740880247443,-500.0,0.00024657,2]
[355042873,1740880247453,-1793.92,0.00024657,2]
[355042874,1740880247463,-500.0,0.00024657,2]
[355042875,1740880247473,-500.0,0.00024657,2]
[355042876,1740880247482,-510.31263693,0.00024657,2]
[355042877,1740880247492,-500.0,0.00024657,2]
[355042878,1740880247502,-500.0,0.00024657,2]
[355042879,1740880247512,-500.0,0.00024657,2]
[355042880,1740880247522,-17596.01,0.00024657,2]
[355042881,1740880247532,-694.6,0.00024657,2]
[355042882,1740880247541,-500.0,0.00024657,2]
[355042883,1740880247551,-500.0,0.00024657,2]
[355042884,1740880247561,-506.82,0.00024657,2]
[355042885,1740880247571,-500.0,0.00024657,2]
[355042886,1740880247580,-780.03,0.00024657,2]
[355042887,1740880247590,-500.0,0.00024657,2]
[355042888,1740880247600,-5992.25,0.00024657,2]
[355042889,1740880247610,-500.0,0.00024657,2]
[355042890,1740880247620,-501.62772906,0.00024657,2]
[355042891,1740880247630,-2325.18,0.00024657,2]
[355042892,1740880247639,-955.14,0.00024657,2]
[355042893,1740880247649,-500.0,0.00024657,2]
[355042894,1740880247658,-1232.16,0.00024657,2]
[355042895,1740880247667,-501.42066931,0.00024657,2]
[355042896,1740880247677,-500.0,0.00024657,2]
[355042897,1740880247687,-500.0,0.00024657,2]
[355042898,1740880247697,-510.8775791,0.00024657,2]
[355042899,1740880247707,-14411.32,0.00024657,2]
[355042900,1740880247716,-500.0,0.00024657,2]
[355042901,1740880247726,-500.0,0.00024657,2]
[355042902,1740880247735,-500.0,0.00024657,2]
[355042903,1740880247745,-504.7,0.00024657,2]
[355042904,1740880247755,-500.0,0.00024657,2]
[355042905,1740880247764,-500.0,0.00024657,2]
[355042906,1740880247774,-6090.67,0.00024657,2]
[355042907,1740880247783,-500.0,0.00024657,2]
[355042908,1740880247793,-500.0,0.00024657,2]
[355042909,1740880247803,-8908.64,0.00024657,2]
[355042910,1740880247812,-1018.64,0.00024657,2]
[355042911,1740880247822,-667.57,0.00024657,2]
[355042912,1740880247832,-1331.8,0.00024657,2]
[355042913,1740880247842,-500.0,0.00024657,2]
[355042914,1740880247852,-500.0,0.00024657,2]
[355042915,1740880247861,-500.0,0.00024657,2]
[355042916,1740880247872,-573.55088134,0.00024657,2]
[355042917,1740880247882,-500.0,0.00024657,2]
[355042918,1740880247891,-500.0,0.00024657,2]
[355042919,1740880247901,-500.0,0.00024657,2]
[355042920,1740880247911,-500.0,0.00024657,2]
[355042921,1740880247920,-896.5,0.00024657,2]
[355042922,1740880247930,-623.08,0.00024657,2]
[355042923,1740880247940,-500.0,0.00024657,2]
[355042924,1740880247950,-500.0,0.00024657,2]
[355042925,1740880247960,-500.0,0.00024657,2]
[355042926,1740880247969,-500.0,0.00024657,2]
[355042927,1740880247980,-1406.67,0.00024657,2]
[355042928,1740880248001,-500.0,0.00024657,2]
[355042929,1740880248010,-5376.44,0.00024657,2]
[355042930,1740880248019,-500.0,0.00024657,2]
[355042931,1740880248029,-500.0,0.00024657,2]
[355042932,1740880248038,-500.0,0.00024657,2]
[355042933,1740880248047,-500.0,0.00024657,2]
[355042934,1740880248057,-500.0,0.00024657,2]
[355042935,1740880248067,-500.0,0.00024657,2]
[355042936,1740880248076,-1017.35,0.00024657,2]
[355042937,1740880248085,-546.12,0.00024657,2]
[355042938,1740880248094,-500.0,0.00024657,2]
[355042939,1740880248104,-500.0,0.00024657,2]
[355042940,1740880248113,-500.0,0.00024657,2]
[355042941,1740880248123,-500.0,0.00024657,2]
[355042942,1740880248133,-500.0,0.00024657,2]
[355042943,1740880248146,-504.32877017,0.00024657,2]
[355042944,1740880248156,-500.0,0.00024657,2]
[355042945,1740880248165,-665.17,0.00024657,2]
[355042946,1740880248174,-501.06919943,0.00024657,2]
[355042947,1740880248183,-500.0,0.00024657,2]
[355042948,1740880248192,-258.4546346,0.00024657,2]
[355042949,1740880248202,-502.45105904,0.00024657,2]
[355042950,1740880248211,-500.0,0.00024657,2]
[355042951,1740880248222,-1330.22,0.00024657,2]
[355042952,1740880248231,-500.0,0.00024657,2]
[355042953,1740880248241,-1436.12,0.00024657,5]
[355042954,1740880248251,-2218.12,0.00024657,2]
[355042955,1740880248260,-500.0,0.00024657,2]
[355042956,1740880248270,-500.0,0.00024657,2]
[355042957,1740880248279,-8022.97,0.00024657,2]
[355042958,1740880248288,-500.0,0.00024657,2]
[355042959,1740880248298,-930.58,0.00024657,2]
[355042960,1740880248307,-673.75,0.00024657,2]
[355042961,1740880248317,-500.0,0.00024657,2]
[355042962,1740880248326,-1207.39,0.00024657,2]
[355042963,1740880248335,-1714.76,0.00024657,2]
[355042964,1740880248346,-407.61020794,0.00024657,2]
[355042965,1740880248355,-500.0,0.00024657,2]
[355042966,1740880248365,-500.0,0.00024657,2]
[355042967,1740880248374,-500.0,0.00024657,2]
[355042968,1740880248383,-524.64367414,0.00024657,2]
[355042969,1740880248393,-500.0,0.00024657,2]
[355042970,1740880248403,-500.0,0.00024657,2]
[355042971,1740880248412,-500.0,0.00024657,2]
[355042972,1740880248422,-500.0,0.00024657,2]
[355042973,1740880248431,-500.0,0.00024657,2]
[355042974,1740880248441,-1788.59,0.00024657,2]
[355042975,1740880248450,-500.0,0.00024657,2]
[355042976,1740880248460,-500.0,0.00024657,2]
[355042977,1740880248470,-500.0,0.00024657,2]
[355042978,1740880248479,-500.0,0.00024657,2]
[355042979,1740880248488,-161.22764319,0.00024657,2]
[355042980,1740880248498,-2000.09,0.00024657,2]